bitfinex-derivatives/quotes_BTCF0:USTF0_20241009
["timestamp","ask_amount","ask_price","bid_price","bid_amount"]
[1728465711985,0.080357,62256.0,62255.0,0.01609]
[1728465712886,0.270357,62256.0,62255.0,0.01609]
[1728465713590,0.080357,62256.0,62255.0,0.01709]
[1728465714491,0.080357,62256.0,62255.0,0.01809]
[1728465715189,0.080357,62256.0,62255.0,0.01709]
[1728465716182,0.084357,62256.0,62255.0,0.01609]
[1728465717092,0.084357,62256.0,62255.0,0.01709]
[1728465717279,0.084357,62256.0,62255.0,0.01809]
[1728465720493,0.274357,62256.0,62255.0,0.01809]
[1728465722783,0.756237,62256.0,62255.0,0.01809]
[1728465722984,0.756237,62256.0,62255.0,0.002]
[1728465724093,0.274357,62256.0,62255.0,0.002]
[1728465724488,0.756237,62256.0,62255.0,0.002]
[1728465724895,0.274357,62256.0,62255.0,0.002]
[1728465727201,0.084357,62256.0,62255.0,0.002]
[1728465727901,0.274357,62256.0,62255.0,0.002]
[1728465728592,0.305657,62256.0,62255.0,0.002]
[1728465731701,0.274357,62256.0,62255.0,0.002]
[1728465739696,0.084357,62256.0,62255.0,0.002]
[1728465740698,0.19133995,62256.0,62255.0,0.00180001]
[1728465741795,0.19133995,62256.0,62255.0,0.08215901]
[1728465742001,0.15891657,62258.0,62257.0,0.080356]
[1728465742310,0.084048,62263.0,62260.0,0.080352]
[1728465742602,0.080348,62263.0,62262.0,0.5508]
[1728465743797,0.080348,62263.0,62262.0,0.631149]
[1728465745707,0.3645,62270.0,62262.0,0.631149]
[1728465746001,0.080343,62267.0,62262.0,0.631149]
[1728465746203,0.08034,62270.0,62266.0,0.270344]
[1728465746393,0.08034,62270.0,62267.0,0.3919]
[1728465746998,0.08034,62270.0,62268.0,0.080342]
[1728465748210,0.08034,62270.0,62268.0,0.082342]
[1728465748510,0.0037,62276.0,62268.0,0.002]
[1728465748715,0.08034,62269.0,62268.0,0.002]
[1728465749998,0.08034,62269.0,62268.0,0.005]
[1728465750398,0.08034,62269.0,62268.0,0.003]
[1728465751312,0.27034,62269.0,62268.0,0.006]
[1728465752719,0.33354,62269.0,62268.0,0.006]
[1728465754414,0.080348,62263.0,62262.0,0.0037]
[1728465754706,0.080357,62256.0,62255.0,0.02219917]
[1728465754909,0.080357,62256.0,62255.0,0.01849917]
[1728465756410,0.082357,62256.0,62255.0,0.01949917]
[1728465757301,0.083357,62256.0,62255.0,0.02049917]
[1728465766904,0.083357,62256.0,62255.0,0.06840012]
[1728465768604,0.083357,62256.0,62255.0,0.02049917]
[1728465772850,0.063357,62256.0,62255.0,0.02049917]
[1728465774633,0.11269168,62256.0,62255.0,0.02049917]
[1728465775133,0.11269168,62256.0,62255.0,0.04381282]
[1728465775332,0.11269168,62256.0,62255.0,0.02049917]
[1728465777042,0.17033893,62256.0,62255.0,0.02049917]
[1728465779938,0.12100425,62256.0,62255.0,0.02049917]
[1728465780142,0.063357,62256.0,62255.0,0.0842387]
[1728465781535,0.063357,62256.0,62255.0,0.02049917]
[1728465782643,0.063357,62256.0,62255.0,0.01809]
[1728465783533,0.063357,62256.0,62255.0,0.09776441]
[1728465784436,0.063357,62256.0,62255.0,0.22024974]
[1728465787934,0.11269194,62256.0,62255.0,0.01809]
[1728465788248,0.17033942,62256.0,62255.0,0.01809]
[1728465791846,0.080366,62249.0,62246.0,0.0037]
[1728465792042,0.08037,62246.0,62245.0,0.02305532]
[1728465792243,0.080374,62243.0,62242.0,0.00240949]
[1728465793054,0.080369,62247.0,62242.0,0.22645512]
[1728465793352,0.0649,62248.0,62245.0,0.12]
[1728465793353,0.08037,62246.0,62245.0,0.12]
[1728465794847,0.08337,62246.0,62245.0,0.12]
[1728465795548,0.08337,62246.0,62245.0,0.122]
[1728465795941,0.08337,62246.0,62245.0,0.24450242]
[1728465796147,0.006,62246.0,62245.0,0.24250242]
[1728465796549,0.006,62246.0,62245.0,0.12]
[1728465797053,0.006,62246.0,62242.0,0.14608012]
[1728465797251,0.080374,62243.0,62242.0,0.14608012]
[1728465798553,0.080374,62243.0,62242.0,0.12240949]
[1728465799153,0.082374,62243.0,62242.0,0.12240949]
[1728465799958,0.083374,62243.0,62242.0,0.12240949]
[1728465801263,0.04315638,62243.0,62242.0,0.39401921]
[1728465802859,0.09249837,62243.0,62242.0,0.12240949]
[1728465803053,0.21978073,62243.0,62242.0,0.12240949]
[1728465804151,0.21978073,62243.0,62242.0,0.20278449]
[1728465804662,0.26912253,62243.0,62242.0,0.20278449]
[1728465806054,0.09249818,62243.0,62242.0,0.20278449]
[1728465806457,0.09249813,62243.0,62242.0,0.12240949]
[1728465806758,0.26908786,62243.0,62242.0,0.00240949]
[1728465806955,0.15015867,62243.0,62242.0,0.00240949]
[1728465807165,0.27015867,62243.0,62242.0,0.00240949]
[1728465809156,0.27016033,62243.0,62242.0,0.00240949]
[1728465810065,0.16315638,62243.0,62242.0,0.08236446]
[1728465817173,0.16315638,62243.0,62242.0,0.20487857]
[1728465818272,0.16315638,62243.0,62242.0,0.00240949]
[1728465818461,0.04315638,62243.0,62242.0,0.00240949]
[1728465818771,0.04315638,62243.0,62242.0,0.12240949]
[1728465819165,0.003,62243.0,62242.0,0.20278449]
[1728465821875,0.003,62243.0,62242.0,0.2263949]
[1728465822079,0.0037,62250.0,62242.0,0.41761802]
[1728465822379,0.0371,62253.0,62249.0,0.12]
[1728465822568,0.080366,62249.0,62248.0,0.0960966]
[1728465823072,0.200366,62249.0,62248.0,0.0960966]
[1728465823277,0.200366,62249.0,62248.0,0.2185941]
[1728465824776,0.200366,62249.0,62248.0,0.2195941]
[1728465824975,0.24970582,62249.0,62248.0,0.001]
[1728465825481,0.25170582,62249.0,62248.0,0.002]
[1728465826779,0.30935902,62249.0,62248.0,0.002]
[1728465828275,0.35869877,62249.0,62248.0,0.002]
[1728465829583,0.30935895,62249.0,62248.0,0.002]
[1728465830582,0.25170575,62249.0,62248.0,0.002]
[1728465833079,0.202366,62249.0,62248.0,0.002]
[1728465834786,0.202366,62249.0,62248.0,0.05009944]
[1728465835485,0.202366,62249.0,62248.0,0.002]
[1728465836287,0.082366,62249.0,62248.0,0.002]
[1728465842087,0.18935886,62249.0,62248.0,0.002]
[1728465844289,0.14001911,62249.0,62248.0,0.202368]
[1728465846090,0.14001911,62249.0,62248.0,0.122]
[1728465846789,0.14001911,62249.0,62248.0,0.202368]
[1728465848094,0.082366,62249.0,62248.0,0.202368]
[1728465849494,0.082366,62249.0,62248.0,0.22562682]
[1728465854001,0.443166,62249.0,62248.0,0.002]
[1728465854191,0.080373,62244.0,62243.0,0.0037]
[1728465854502,0.080373,62244.0,62239.0,0.01608]
[1728465854503,0.080378,62240.0,62239.0,0.01608]
[1728465854804,0.200378,62240.0,62239.0,0.01608]
[1728465855992,0.200378,62240.0,62239.0,0.01708]
[1728465857293,0.200378,62240.0,62239.0,0.01908]
[1728465861707,0.22418851,62240.0,62239.0,0.01908]
[1728465862599,0.080387,62233.0,62232.0,0.0037]
[1728465862812,0.080391,62230.0,62225.0,0.100177]
[1728465863013,0.3608,62235.0,62225.0,0.577277]
[1728465863014,0.12,62228.0,62225.0,0.577277]
[1728465863212,0.12,62228.0,62225.0,0.60040627]
[1728465863405,0.200393,62228.0,62225.0,0.60040627]
[1728465864017,0.080393,62228.0,62226.0,0.080395]
[1728465864209,0.080393,62228.0,62227.0,0.12]
[1728465865417,0.080393,62228.0,62227.0,0.134]
[1728465866808,0.081393,62228.0,62227.0,0.147]
[1728465867009,0.201393,62228.0,62227.0,0.027]
[1728465869416,0.001,62228.0,62221.0,0.0037]
[1728465869604,0.080404,62220.0,62219.0,0.00241058]
[1728465869811,0.200404,62220.0,62219.0,0.00241058]
[1728465870317,0.200404,62220.0,62219.0,0.12496616]
[1728465870318,0.10384019,62220.0,62219.0,0.12496616]
[1728465870821,0.18424419,62220.0,62219.0,0.12255558]
[1728465871017,0.18424419,62220.0,62219.0,0.21565113]
[1728465871317,0.18424419,62220.0,62219.0,0.026]
[1728465873719,0.080404,62220.0,62219.0,0.026]
[1728465873921,0.200404,62220.0,62219.0,0.026]
[1728465874118,0.080404,62220.0,62219.0,0.026]
[1728465874415,0.200404,62220.0,62219.0,0.026]
[1728465874717,0.200404,62220.0,62219.0,0.02596]
[1728465875604,0.3608,62224.0,62219.0,0.02596]
[1728465875811,0.4412,62224.0,62223.0,0.12]
[1728465876114,0.4412,62224.0,62219.0,0.106365]
[1728465876115,0.4412,62224.0,62219.0,0.226365]
[1728465876425,0.4412,62224.0,62221.0,0.12]
[1728465876715,0.4422,62224.0,62221.0,0.12]
[1728465876923,0.4432,62224.0,62223.0,0.008]
[1728465877420,0.4422,62224.0,62221.0,0.12]
[1728465877623,0.4432,62224.0,62221.0,0.13]
[1728465877923,0.3628,62224.0,62221.0,0.210402]
[1728465878131,0.0804,62223.0,62221.0,0.080402]
[1728465879731,0.0804,62223.0,62221.0,0.090402]
[1728465879909,0.0814,62223.0,62221.0,0.100402]
[1728465880311,0.0824,62223.0,62221.0,0.100402]
[1728465882923,0.080401,62222.0,62221.0,0.02]
[1728465884327,0.001,62223.0,62221.0,0.14]
[1728465884626,0.001,62222.0,62221.0,0.220402]
[1728465885121,5.381e-05,62222.0,62221.0,0.220402]
[1728465886426,5.381e-05,62222.0,62221.0,0.34295117]
[1728465887018,5.381e-05,62222.0,62221.0,0.33295117]
[1728465887326,0.00105381,62222.0,62221.0,0.34295117]
[1728465890317,0.00105381,62222.0,62221.0,0.49211333]
[1728465892731,0.00105381,62222.0,62221.0,0.37211333]
[1728465892927,0.08145481,62222.0,62221.0,0.29171133]
[1728465893136,0.08145481,62222.0,62221.0,0.02]
[1728465896938,0.44225481,62222.0,62221.0,0.02]
[1728465898433,0.442201,62222.0,62221.0,0.01]
[1728465898734,0.443201,62222.0,62221.0,0.019]
[1728465900437,0.443201,62222.0,62221.0,0.018]
[1728465900737,0.443201,62222.0,62221.0,0.28973362]
[1728465901735,0.443201,62222.0,62221.0,0.14055876]
[1728465904644,0.441201,62222.0,62221.0,0.12655876]
[1728465904834,0.441201,62222.0,62221.0,0.13055876]
[1728465906029,0.449201,62222.0,62221.0,0.12755876]
[1728465906741,0.449201,62222.0,62221.0,0.22395466]
[1728465907036,0.456201,62222.0,62221.0,0.12455876]
[1728465907535,0.449201,62222.0,62221.0,0.12455876]
[1728465907738,0.458201,62222.0,62221.0,0.12455876]
[1728465910942,0.458201,62222.0,62221.0,0.12456328]
[1728465911235,0.097401,62222.0,62221.0,0.12456328]
[1728465911443,0.458201,62222.0,62221.0,0.12456328]
[1728465912638,0.578201,62222.0,62221.0,0.12456328]
[1728465913239,0.217401,62222.0,62221.0,0.12456328]
[1728465913447,0.578201,62222.0,62221.0,0.12456328]
[1728465914739,0.458201,62222.0,62221.0,0.12456328]
[1728465914940,0.217401,62222.0,62221.0,0.12456328]
[1728465915141,0.17716651,62222.0,62221.0,0.12456328]
[1728465915341,0.17716651,62222.0,62221.0,0.002]
[1728465926253,0.53796651,62222.0,62221.0,0.002]
[1728465929665,0.41796651,62222.0,62221.0,0.002]
[1728465929862,0.53796651,62222.0,62221.0,0.002]
[1728465936560,0.17716651,62222.0,62221.0,0.002]
[1728465936761,0.53796651,62222.0,62221.0,0.002]
[1728465945361,0.53796651,62222.0,62221.0,0.12456035]
[1728465950176,0.05716651,62222.0,62221.0,0.12456035]
[1728465951262,0.05716651,62222.0,62221.0,0.27371698]
[1728465951770,0.017,62222.0,62221.0,0.27371698]
[1728465951972,0.017,62222.0,62221.0,0.35411898]
[1728465952170,0.017,62222.0,62221.0,0.52989103]
[1728465952565,0.017,62222.0,62221.0,0.35411898]
[1728465952769,0.017,62222.0,62221.0,0.52988943]
[1728465953467,0.097401,62222.0,62221.0,0.10602609]
[1728465953870,0.217401,62222.0,62221.0,0.10602609]
[1728465955677,0.217401,62222.0,62221.0,0.002]
[1728465958983,0.097401,62222.0,62221.0,0.002]
[1728465959477,0.017,62222.0,62221.0,1.164562]
[1728465961881,0.017,62222.0,62221.0,0.564562]
[1728465962082,0.217401,62222.0,62221.0,0.002]
[1728465969376,0.699561,62222.0,62216.0,0.0037]
[1728465969577,0.080411,62214.0,62211.0,0.0037]
[1728465969784,0.080411,62214.0,62210.0,0.0037]
[1728465969785,0.200411,62214.0,62208.0,0.00241059]
[1728465970287,0.080418,62209.0,62208.0,0.00241059]
[1728465970599,0.200418,62209.0,62208.0,0.00241059]
[1728465971890,0.200418,62209.0,62208.0,0.00741059]
[1728465972093,0.201418,62209.0,62208.0,0.01241059]
[1728465975681,0.562218,62209.0,62208.0,0.01241059]
[1728465976685,0.52197251,62209.0,62208.0,0.01241059]
[1728465976878,0.52197251,62209.0,62208.0,0.21511678]
[1728465977484,0.52197251,62209.0,62208.0,0.0925323]
[1728465978606,0.52197251,62209.0,62208.0,0.01241059]
[1728465979493,0.52197251,62209.0,62208.0,0.01221059]
[1728465993412,0.40197251,62209.0,62208.0,0.01]
[1728465996205,0.40197251,62209.0,62208.0,0.13258121]
[1728465996206,0.34563184,62209.0,62208.0,0.13258121]
[1728465997014,0.42604984,62209.0,62208.0,0.13258121]
[1728466002216,0.43004984,62209.0,62208.0,0.12758121]
[1728466002524,0.43504984,62209.0,62208.0,0.12358121]
[1728466003620,0.43104984,62209.0,62208.0,0.12358121]
[1728466003920,0.44104984,62209.0,62208.0,0.12458121]
[1728466004830,0.44804984,62209.0,62208.0,0.12458121]
[1728466005529,0.44804984,62209.0,62208.0,0.002]
[1728466006229,0.55512462,62209.0,62208.0,0.002]
[1728466007026,0.64512462,62209.0,62208.0,0.002]
[1728466007342,0.080427,62202.0,62201.0,0.0037]
[1728466007528,0.08043,62200.0,62199.0,0.01608]
[1728466008827,0.08243,62200.0,62199.0,0.01608]
[1728466009124,0.002,62200.0,62199.0,0.01608]
[1728466009530,0.08243,62200.0,62199.0,0.01608]
[1728466010032,0.08443,62200.0,62199.0,0.01608]
[1728466011228,0.13380753,62200.0,62199.0,0.01608]
[1728466012533,0.08443,62200.0,62199.0,0.28789026]
[1728466014834,0.03613322,62200.0,62199.0,0.28789026]
[1728466017638,0.080439,62193.0,62192.0,0.0037]
[1728466017837,0.080445,62188.0,62187.0,0.14418793]
[1728466018147,0.561245,62188.0,62187.0,0.14418793]
[1728466018530,0.631245,62188.0,62187.0,0.14418793]
[1728466019141,0.632245,62188.0,62187.0,0.15518793]
[1728466019527,0.632245,62188.0,62187.0,0.14418793]
[1728466019740,0.632245,62188.0,62187.0,0.15118793]
[1728466019944,0.632245,62188.0,62187.0,0.007]
[1728466020239,0.633245,62188.0,62187.0,0.014]
[1728466020437,0.633245,62188.0,62187.0,0.09428345]
[1728466023834,0.65665655,62188.0,62187.0,0.09428345]
[1728466024532,0.65665655,62188.0,62187.0,0.014]
[1728466031042,0.61639548,62188.0,62187.0,0.014]
[1728466031543,0.61639548,62188.0,62187.0,0.06208446]
[1728466035334,0.25559548,62188.0,62187.0,0.014]
[1728466035540,0.61639548,62188.0,62187.0,0.014]
[1728466035942,0.25559548,62188.0,62187.0,0.014]
[1728466036140,0.61639548,62188.0,62187.0,0.014]
[1728466036744,0.25559548,62188.0,62187.0,0.014]
[1728466037347,0.61639548,62188.0,62187.0,0.014]
[1728466038542,0.54639548,62188.0,62187.0,0.014]
[1728466038742,0.18559548,62188.0,62187.0,0.014]
[1728466038966,0.54639548,62188.0,62187.0,0.014]
[1728466040060,0.18559548,62188.0,62187.0,0.014]
[1728466040244,0.54639548,62188.0,62187.0,0.014]
[1728466040549,0.42639548,62188.0,62187.0,0.014]
[1728466040749,0.54639548,62188.0,62187.0,0.014]
[1728466041251,0.40298393,62188.0,62187.0,0.014]
[1728466041448,0.52298393,62188.0,62187.0,0.014]
[1728466044445,0.52298393,62188.0,62187.0,0.09416415]
[1728466045355,0.52298393,62188.0,62187.0,0.014]
[1728466048849,0.52298393,62188.0,62187.0,0.012]
[1728466049458,0.52998393,62188.0,62187.0,0.006]
[1728466049761,0.53598393,62188.0,62187.0,0.002]
[1728466049956,0.53598393,62188.0,62187.0,0.12463219]
[1728466057761,0.53598393,62188.0,62187.0,0.002]
[1728466062256,0.080454,62181.0,62180.0,0.11241795]
[1728466062462,0.561254,62181.0,62180.0,0.11241795]
[1728466063672,0.562254,62181.0,62180.0,0.11241795]
[1728466064957,0.080457,62179.0,62178.0,0.08097786]
[1728466065572,0.080457,62179.0,62178.0,0.18197605]
[1728466066372,0.080457,62179.0,62178.0,0.18397605]
[1728466066571,0.12,62179.0,62178.0,0.18397605]
[1728466066762,0.12,62179.0,62178.0,0.30760576]
[1728466067982,0.200457,62179.0,62178.0,0.30760576]
[1728466069567,0.200457,62179.0,62178.0,0.30756576]
[1728466072286,0.200457,62179.0,62178.0,0.1582947]
[1728466072670,0.200457,62179.0,62178.0,0.11610821]
[1728466075972,0.200457,62179.0,62178.0,0.23874291]
[1728466077666,0.200457,62179.0,62178.0,0.1582947]
[1728466079183,0.080457,62179.0,62178.0,0.1582947]
[1728466079379,0.200457,62179.0,62178.0,0.1582947]
[1728466080772,0.200457,62179.0,62178.0,0.30756199]
[1728466080773,0.1601961,62179.0,62178.0,0.30756199]
[1728466086988,0.1601961,62179.0,62178.0,0.30756204]
[1728466091878,0.1601961,62179.0,62178.0,0.42023472]
[1728466094190,0.1601961,62179.0,62178.0,0.38757472]
[1728466095694,0.1601961,62179.0,62178.0,0.26494]
[1728466096001,0.1601961,62179.0,62178.0,0.11567268]
[1728466102411,0.0401961,62179.0,62178.0,0.11567268]
[1728466102707,0.1601961,62179.0,62178.0,0.11567268]
[1728466117008,0.5209961,62179.0,62178.0,0.11567268]
[1728466119005,0.4009961,62179.0,62178.0,0.11567268]
[1728466119409,0.5209961,62179.0,62178.0,0.11567268]
[1728466121810,0.4808,62179.0,62178.0,0.19613068]
[1728466122110,0.4808,62179.0,62178.0,0.22713068]
[1728466122408,0.3608,62184.0,62182.0,0.080453]
[1728466122610,0.080448,62186.0,62182.0,0.080453]
[1728466122611,0.200448,62186.0,62183.0,0.14926185]
[1728466122914,0.3645,62191.0,62184.0,0.27189157]
[1728466123112,0.080442,62190.0,62189.0,0.09651336]
[1728466123309,0.080442,62190.0,62189.0,0.12262972]
[1728466124400,0.080442,62190.0,62189.0,0.12362972]
[1728466124715,0.090442,62190.0,62189.0,0.12362972]
[1728466125405,0.099442,62190.0,62189.0,0.12362972]
[1728466125608,0.099442,62190.0,62189.0,0.001]
[1728466126417,0.219442,62190.0,62189.0,0.001]
[1728466133605,0.1791845,62190.0,62189.0,0.12362436]
[1728466139118,0.1791845,62190.0,62189.0,0.001]
[1728466159734,0.1791845,62190.0,62189.0,0.12362431]
[1728466162938,0.1791845,62190.0,62189.0,0.22004223]
[1728466163537,0.1791845,62190.0,62189.0,0.22004222]
[1728466163840,0.2285754,62190.0,62189.0,0.001]
[1728466166339,0.38959375,62190.0,62189.0,0.001]
[1728466166727,0.2285754,62190.0,62189.0,0.001]
[1728466169142,0.1085754,62190.0,62189.0,0.001]
[1728466169345,0.2285754,62190.0,62189.0,0.001]
[1728466170636,0.2285754,62190.0,62189.0,0.12362343]
[1728466170841,0.1791845,62190.0,62189.0,0.12362343]
[1728466182533,0.1791845,62190.0,62189.0,0.22018349]
[1728466183141,0.1791845,62190.0,62189.0,0.12362343]
[1728466185742,0.1791845,62190.0,62189.0,0.001]
[1728466200158,0.019,62190.0,62189.0,0.121]
[1728466200365,0.019,62190.0,62189.0,0.201444]
[1728466200556,0.019,62190.0,62189.0,0.233244]
[1728466201665,0.019,62190.0,62189.0,0.25638793]
[1728466201864,0.019,62190.0,62189.0,0.113244]
[1728466202552,0.05840013,62190.0,62189.0,0.113244]
[1728466202754,0.13884213,62190.0,62189.0,0.001]
[1728466202954,0.099442,62190.0,62189.0,0.001]
[1728466203971,0.14883269,62190.0,62189.0,0.001]
[1728466204554,0.099442,62190.0,62189.0,0.001]
[1728466204763,0.14883554,62190.0,62189.0,0.001]
[1728466204950,0.14883554,62190.0,62182.0,0.0074]
[1728466204951,0.080452,62183.0,62182.0,0.0074]
[1728466205156,0.080457,62179.0,62177.0,0.0661]
[1728466205359,0.12,62178.0,62177.0,0.0661]
[1728466206968,0.12,62178.0,62177.0,0.0691]
[1728466207160,0.12,62178.0,62177.0,0.0711]
[1728466207557,0.200458,62178.0,62177.0,0.0711]
[1728466207867,0.080458,62178.0,62177.0,0.34300421]
[1728466208066,0.200458,62178.0,62177.0,0.34300421]
[1728466209770,0.200458,62178.0,62177.0,0.31080421]
[1728466210067,0.200458,62178.0,62177.0,0.1615357]
[1728466210769,0.200458,62178.0,62177.0,0.1276357]
[1728466210770,0.561258,62178.0,62177.0,0.1276357]
[1728466212768,0.441258,62178.0,62177.0,0.1276357]
[1728466213063,0.561258,62178.0,62177.0,0.1276357]
[1728466214166,0.0037,62185.0,62177.0,0.2476357]
[1728466214370,0.0037,62188.0,62184.0,0.12]
[1728466214577,0.080445,62188.0,62187.0,0.12]
[1728466214765,0.080445,62188.0,62187.0,0.1546]
[1728466215570,0.080445,62188.0,62187.0,0.0346]
[1728466216579,0.087445,62188.0,62187.0,0.0346]
[1728466216878,0.095445,62188.0,62187.0,0.0356]
[1728466219969,0.215445,62188.0,62187.0,0.0356]
[1728466232574,0.015,62188.0,62187.0,0.236046]
[1728466232775,0.015,62188.0,62187.0,0.718446]
[1728466233086,0.0037,62194.0,62193.0,0.080439]
[1728466233278,0.080433,62198.0,62193.0,0.4808]
[1728466233488,0.080433,62198.0,62195.0,0.080435]
[1728466233680,0.080433,62198.0,62196.0,0.0338]
[1728466234081,0.27020114,62197.0,62196.0,0.114235]
[1728466234885,0.18976814,62197.0,62196.0,0.234235]
[1728466235085,0.001,62197.0,62196.0,0.237235]
[1728466235787,0.005,62197.0,62196.0,0.237235]
[1728466236188,0.001,62197.0,62196.0,0.237235]
[1728466236388,0.002,62197.0,62196.0,0.244235]
[1728466236688,0.082433,62197.0,62196.0,0.0438]
[1728466238489,0.002,62197.0,62196.0,0.0438]
[1728466238681,0.002,62197.0,62196.0,0.244235]
[1728466238988,0.00241246,62201.0,62200.0,0.08043]
[1728466239185,0.00241246,62201.0,62200.0,0.56123]
[1728466239991,0.00241246,62201.0,62200.0,1.04355]
[1728466240693,0.00241246,62201.0,62200.0,1.04755]
[1728466241191,0.0887622,62201.0,62200.0,1.64755]
[1728466241380,0.0887622,62201.0,62200.0,1.64555]
[1728466241577,0.0957622,62201.0,62200.0,1.64655]
[1728466241790,0.0957622,62201.0,62200.0,1.04655]
[1728466242093,0.1027622,62201.0,62200.0,1.04555]
[1728466242492,0.1027622,62201.0,62200.0,1.11555]
[1728466242795,0.05769128,62205.0,62204.0,0.080424]
[1728466243992,0.06269128,62205.0,62204.0,0.081424]
[1728466244291,0.06269128,62205.0,62204.0,0.271424]
[1728466245788,0.06269128,62205.0,62204.0,0.272424]
[1728466245978,0.005,62205.0,62204.0,0.272424]
[1728466247193,0.005,62205.0,62204.0,0.29598024]
[1728466254396,0.005,62205.0,62204.0,0.77826024]
[1728466255005,0.005,62205.0,62204.0,0.29598024]
[1728466263105,0.005,62205.0,62204.0,0.10598024]
[1728466263300,0.085423,62205.0,62204.0,0.10598024]
[1728466265508,0.085423,62205.0,62204.0,0.46678024]
[1728466269613,0.085423,62205.0,62204.0,0.10598024]
[1728466269798,0.085423,62205.0,62204.0,0.46678024]
[1728466275217,0.005,62205.0,62204.0,0.46678024]
[1728466275717,0.005,62205.0,62204.0,0.10598024]
[1728466275908,0.005,62205.0,62204.0,0.46678024]
[1728466278920,0.005,62205.0,62204.0,0.10598024]
[1728466279123,0.09376312,62205.0,62204.0,0.10598024]
[1728466280120,0.005,62205.0,62204.0,0.10598024]
[1728466282013,0.005,62205.0,62204.0,0.46678024]
[1728466282823,0.005,62205.0,62204.0,0.10598024]
[1728466283020,0.005,62205.0,62204.0,0.46678024]
[1728466283723,0.005,62205.0,62204.0,0.10598024]
[1728466283911,0.005,62205.0,62204.0,0.46678024]
[1728466284118,0.005,62205.0,62204.0,0.58935924]
[1728466285325,0.005,62205.0,62204.0,0.58935921]
[1728466285825,0.005,62205.0,62204.0,0.22855921]
[1728466286024,0.005,62205.0,62204.0,0.58935921]
[1728466286427,0.005,62205.0,62204.0,0.22855921]
[1728466286625,0.005,62205.0,62204.0,0.58935921]
[1728466289926,0.005,62205.0,62204.0,0.22855921]
[1728466290118,0.005,62205.0,62204.0,0.58935921]
[1728466290426,0.005,62205.0,62204.0,0.71193822]
[1728466291222,0.005,62205.0,62204.0,0.58935927]
[1728466296724,0.005,62205.0,62204.0,0.46678024]
[1728466297322,0.005,62205.0,62204.0,0.10598024]
[1728466298131,0.005,62205.0,62204.0,0.46678024]
[1728466300732,0.005,62205.0,62204.0,0.10598024]
[1728466300930,0.005,62205.0,62204.0,0.46678024]
[1728466302533,0.00584418,62205.0,62204.0,0.46678024]
[1728466303836,0.00584418,62205.0,62204.0,0.10598024]
[1728466304136,0.00584418,62205.0,62204.0,0.46678024]
[1728466312235,0.08626718,62205.0,62204.0,0.46678024]
[1728466314439,0.04602611,62205.0,62204.0,0.58935456]
[1728466314743,0.04602611,62205.0,62204.0,0.58935457]
[1728466315936,0.12,62207.0,62206.0,0.080422]
[1728466316133,0.12,62207.0,62206.0,0.28325326]
[1728466317132,0.200421,62207.0,62206.0,0.64505326]
[1728466317334,0.200421,62207.0,62206.0,0.001]
[1728466317535,0.200421,62207.0,62206.0,0.06521971]
[1728466317936,0.200421,62207.0,62206.0,0.001]
[1728466318243,0.201421,62207.0,62206.0,0.002]
[1728466320250,0.201421,62207.0,62206.0,0.12458758]
[1728466321046,0.201421,62207.0,62206.0,0.12458535]
[1728466322934,0.201421,62207.0,62206.0,0.20484156]
[1728466323139,0.201421,62207.0,62206.0,0.12458535]
[1728466323339,0.201421,62207.0,62206.0,0.20483839]
[1728466325853,0.201421,62207.0,62206.0,0.12458535]
[1728466326450,0.201421,62207.0,62206.0,0.002]
[1728466327350,0.081421,62207.0,62206.0,0.32500522]
[1728466327948,0.081421,62207.0,62206.0,0.20500522]
[1728466328456,0.081421,62207.0,62206.0,0.082422]
[1728466328644,0.12081034,62207.0,62206.0,0.082422]
[1728466328848,0.17018211,62207.0,62206.0,0.082422]
[1728466329450,0.34697202,62207.0,62206.0,0.082422]
[1728466330556,0.17018211,62207.0,62206.0,0.082422]
[1728466330861,0.34697202,62207.0,62206.0,0.082422]
[1728466331445,0.17018211,62207.0,62206.0,0.082422]
[1728466331645,0.22787533,62207.0,62206.0,0.082422]
[1728466332661,0.22787533,62207.0,62206.0,0.002]
[1728466335260,0.081421,62207.0,62206.0,0.002]
[1728466342163,0.201421,62207.0,62206.0,0.002]
[1728466358879,0.201421,62207.0,62206.0,0.05019528]
[1728466360477,0.201421,62207.0,62206.0,0.002]
[1728466365375,0.34788861,62207.0,62206.0,0.002]
[1728466373379,0.201421,62207.0,62206.0,0.002]
[1728466380384,0.34788827,62207.0,62206.0,0.002]
[1728466382088,0.22788827,62207.0,62206.0,0.0358]
[1728466384193,0.34788827,62207.0,62206.0,0.0358]
[1728466384394,0.34788827,62207.0,62206.0,0.002]
[1728466384692,0.3478884,62207.0,62206.0,0.002]
[1728466384891,0.2278884,62207.0,62206.0,0.002]
[1728466385203,0.3478884,62207.0,62206.0,0.002]
[1728466388496,0.201421,62207.0,62206.0,0.002]
[1728466406714,0.201421,62207.0,62206.0,0.05022642]
[1728466407012,0.562221,62207.0,62206.0,0.002]
[1728466413821,0.3618,62207.0,62206.0,0.122]
[1728466414214,0.3618,62207.0,62206.0,0.1561]
[1728466415014,0.3618,62207.0,62206.0,0.236522]
[1728466418026,0.001,62207.0,62206.0,0.236522]
[1728466418319,0.081421,62207.0,62206.0,0.1561]
[1728466419028,0.081421,62207.0,62206.0,0.0361]
[1728466419416,0.201421,62207.0,62206.0,0.0361]
[1728466422031,0.081421,62207.0,62206.0,0.0361]
[1728466422424,0.001,62207.0,62206.0,0.0361]
[1728466432231,0.001,62207.0,62206.0,0.116522]
[1728466432634,0.001,62207.0,62206.0,0.477322]
[1728466432835,0.001,62207.0,62206.0,0.68021099]
[1728466433036,0.001,62207.0,62206.0,0.59989602]
[1728466433231,0.001,62207.0,62206.0,0.6801328]
[1728466433732,0.20114897,62207.0,62206.0,0.477322]